bitfinex-derivatives/quotes_SOLF0:USTF0_20250909
["timestamp","ask_amount","ask_price","bid_price","bid_amount"]
[1757401995826,9.18188145,219.35,219.29,4.12276493]
[1757401996032,7.28,219.34,219.3,4.12276493]
[1757401996233,7.28,219.34,219.27,7.48]
[1757401996433,7.28,219.34,219.28,4.12198488]
[1757401996628,9.18188145,219.35,219.29,4.12198488]
[1757401996834,7.28,219.34,219.3,4.12198488]
[1757401997034,9.18188145,219.35,219.27,7.09]
[1757401997235,9.18188145,219.35,219.28,4.12414399]
[1757401997436,9.18188145,219.35,219.29,4.12414399]
[1757401997638,1.90188145,219.35,219.3,4.12414399]
[1757401997838,121.54,219.34,219.27,7.09]
[1757401998033,121.52,219.34,219.28,4.12442065]
[1757401998240,7.28,219.33,219.29,11.21442065]
[1757401998538,7.28,219.33,219.3,4.12442065]
[1757401998730,7.28,219.33,219.29,7.09]
[1757401998935,7.28,219.33,219.3,4.12406161]
[1757401999134,7.28,219.33,219.29,7.09]
[1757401999336,114.24,219.34,219.3,4.12368615]
[1757401999538,7.28,219.31,219.21,7.09]
[1757401999837,114.24,219.34,219.22,4.12560434]
[1757401999838,1.90188145,219.28,219.22,4.12560434]
[1757402000135,7.28,219.27,219.23,4.12560434]
[1757402000333,94.46,219.27,219.24,4.12560434]
[1757402000538,94.46,219.27,219.21,7.09]
[1757402000734,94.46,219.27,219.22,4.12597415]
[1757402001041,7.28,219.26,219.18,1.90188145]
[1757402001235,9.18188145,219.26,219.19,4.12552662]
[1757402001538,9.18188145,219.26,219.12,3.81648992]
[1757402001539,7.28,219.23,219.14,1.90188145]
[1757402001840,1.90188145,219.22,219.15,7.75177298]
[1757402002033,1.90188145,219.22,219.16,4.12619301]
[1757402002236,1.90188145,219.22,219.17,4.12619301]
[1757402002439,34.6,219.21,219.14,7.09]
[1757402002642,34.6,219.21,219.15,4.12519861]
[1757402002840,7.28,219.2,219.16,4.12519861]
[1757402003039,7.28,219.2,219.14,7.09]
[1757402003241,7.28,219.2,219.15,11.21298842]
[1757402003440,7.28,219.2,219.16,4.12298842]
[1757402003640,7.28,219.2,219.15,7.09]
[1757402003845,7.28,219.19,219.11,8.99188145]
[1757402004141,7.28,219.19,219.12,7.74526933]
[1757402004338,7.28,219.19,219.13,4.12286338]
[1757402004541,7.28,219.19,219.14,4.12286338]
[1757402004740,7.28,219.19,219.11,7.09]
[1757402005046,1.90188145,219.18,219.12,4.12093185]
[1757402005242,7.28,219.17,219.13,4.12088225]
[1757402005445,7.28,219.17,219.11,7.09]
[1757402005646,7.28,219.17,219.12,4.12146398]
[1757402005842,7.28,219.17,219.09,7.09]
[1757402006045,7.28,219.17,219.1,4.12134634]
[1757402006236,7.28,219.17,219.11,4.12134634]
[1757402006441,1.90188145,219.18,219.12,4.12134634]
[1757402006738,91.6,219.18,219.1,1.90188145]
[1757402006943,91.6,219.18,219.11,4.12084574]
[1757402007154,91.6,219.18,219.12,4.12084574]
[1757402007353,91.6,219.18,219.1,1.90188145]
[1757402007553,91.6,219.18,219.11,4.12088896]
[1757402007850,91.6,219.18,219.12,4.12088896]
[1757402008153,91.6,219.18,219.1,1.90188145]
[1757402008357,91.6,219.18,219.11,4.1193106]
[1757402008655,7.28,219.18,219.12,4.1193106]
[1757402008956,114.42188145,219.18,219.09,7.09]
[1757402009156,114.42188145,219.18,219.1,4.12291426]
[1757402009357,114.42188145,219.18,219.11,4.12291426]
[1757402009553,114.42188145,219.18,219.12,4.12291426]
[1757402009760,9.18188145,219.18,219.09,7.09]
[1757402009959,9.18188145,219.18,219.1,4.1225557]
[1757402010161,29.0,219.18,219.12,7.09]
[1757402010358,29.0,219.18,219.13,4.1225557]
[1757402010558,29.0,219.18,219.14,4.1225557]
[1757402010760,7.28,219.18,219.13,7.09]
[1757402010960,7.28,219.18,219.14,4.12308576]
[1757402011157,7.28,219.18,219.13,7.09]
[1757402011358,7.28,219.18,219.14,4.12380362]
[1757402011560,9.18188145,219.19,219.13,7.09]
[1757402011759,1.90188145,219.19,219.14,4.1239518]
[1757402011958,9.18188145,219.19,219.13,7.09]
[1757402012160,1.90188145,219.19,219.14,4.12394405]
[1757402012358,1.90188145,219.19,219.15,4.11998546]
[1757402012556,1.90188145,219.19,219.13,7.09]
[1757402012756,7.28,219.2,219.14,4.11977054]
[1757402012757,84.5,219.2,219.14,4.11977054]
[1757402012951,106.36188145,219.2,219.15,4.11977054]
[1757402013153,7.28,219.17,219.09,7.09]
[1757402013354,1.90188145,219.16,219.1,4.11991173]
[1757402013557,1.90188145,219.16,219.11,4.11991173]
[1757402013858,7.28,219.15,219.12,4.11991173]
[1757402014164,7.28,219.15,219.09,7.09]
[1757402014360,7.28,219.15,219.1,11.21016833]
[1757402014662,7.28,219.15,219.11,4.12016833]
[1757402014860,7.28,219.15,219.12,4.12016833]
[1757402015061,7.28,219.15,219.13,4.12016833]
[1757402015264,7.28,219.19,219.13,7.09]
[1757402015465,114.06,219.2,219.14,4.1192804]
[1757402015466,115.96188145,219.2,219.14,4.1192804]
[1757402015663,7.28,219.19,219.15,4.1192804]
[1757402015854,7.28,219.19,219.13,7.09]
[1757402016054,115.96188145,219.2,219.14,4.11880063]
[1757402016256,7.28,219.19,219.15,4.11880063]
[1757402016461,7.28,219.19,219.13,7.09]
[1757402016661,7.28,219.19,219.14,4.11893532]
[1757402016864,7.28,219.19,219.15,4.11893532]
[1757402017066,7.28,219.19,219.13,7.09]
[1757402017265,7.28,219.19,219.14,4.11854836]
[1757402017460,7.28,219.19,219.15,4.11854836]
[1757402017759,7.28,219.19,219.13,7.09]
[1757402017961,115.96188145,219.2,219.14,4.11886056]
[1757402018163,1.90188145,219.18,219.08,8.99188145]
[1757402018364,7.28,219.17,219.09,7.74340158]
[1757402018564,7.28,219.17,219.1,7.74340158]
[1757402018765,7.28,219.17,219.11,7.74340158]
[1757402018962,7.28,219.17,219.08,8.99188145]
[1757402018963,9.18188145,219.18,219.12,4.11977633]
[1757402019160,1.90188145,219.18,219.13,4.11977633]
[1757402019365,7.28,219.17,219.08,8.99188145]
[1757402019657,7.28,219.17,219.09,7.73949479]
[1757402019863,7.28,219.17,219.1,7.73949479]
[1757402020063,7.28,219.17,219.11,4.11723739]
[1757402020368,7.28,219.17,219.12,4.11723739]
[1757402020568,7.28,219.17,219.08,8.99188145]
[1757402020767,7.28,219.17,219.09,7.73743482]
[1757402020964,7.28,219.17,219.1,4.11649496]
[1757402021165,7.28,219.17,219.11,4.11649496]
[1757402021366,113.92,219.16,219.08,8.99188145]
[1757402021564,113.92,219.16,219.09,4.11724136]
[1757402021764,113.92,219.16,219.1,4.11724136]
[1757402021967,7.28,219.15,219.11,4.11724136]
[1757402022163,7.28,219.15,219.08,8.99188145]
[1757402022368,7.28,219.15,219.09,4.11620937]
[1757402022568,7.28,219.15,219.11,7.09]
[1757402023069,7.28,219.15,219.07,7.09]
[1757402023070,9.18188145,219.15,219.07,7.09]
[1757402023269,9.18188145,219.15,219.08,4.11622665]
[1757402023569,9.18188145,219.15,219.09,4.11622665]
[1757402023871,1.90188145,219.15,219.1,4.11622665]
[1757402024174,7.51,219.14,219.07,7.09]
[1757402024470,7.51,219.14,219.08,4.11571642]
[1757402024668,1.90188145,219.15,219.07,7.09]
[1757402024669,9.41188145,219.15,219.09,4.11571642]
[1757402024864,9.41188145,219.15,219.07,7.09]
[1757402025067,1.90188145,219.11,219.07,7.09]
[1757402025366,7.51,219.1,219.07,7.09]
[1757402025567,7.51,219.1,219.02,1.90188145]
[1757402025763,7.51,219.1,219.03,14.75713325]
[1757402025959,7.51,219.1,219.04,4.11629517]
[1757402026168,7.51,219.1,219.06,7.02]
[1757402026764,7.51,219.1,219.03,7.02]
[1757402026965,7.51,219.1,219.04,4.11540076]
[1757402027166,7.51,219.1,219.06,7.02]
[1757402031070,7.51,219.1,219.07,4.11786231]
[1757402031272,7.51,219.1,219.06,7.02]
[1757402031472,7.51,219.1,219.07,4.11893209]
[1757402031670,7.51,219.1,219.06,7.02]
[1757402031868,7.51,219.1,219.07,4.11919471]
[1757402032170,7.51,219.1,219.06,7.02]
[1757402032371,7.51,219.1,219.07,4.12022931]
[1757402032566,7.51,219.16,219.08,4.11911375]
[1757402032762,35.01,219.16,219.09,4.11911375]
[1757402032965,35.01,219.16,219.08,7.02]
[1757402033173,35.01,219.16,219.09,4.11911112]
[1757402033373,35.01,219.16,219.08,7.02]
[1757402033572,35.01,219.16,219.09,4.11999988]
[1757402033773,35.01,219.16,219.08,7.02]
[1757402033973,35.01,219.16,219.09,4.11999988]
[1757402034174,35.01,219.16,219.1,4.12128609]
[1757402034470,35.01,219.16,219.08,7.02]
[1757402034671,35.01,219.16,219.09,4.12128609]
[1757402034871,35.01,219.16,219.08,7.02]
[1757402035068,7.51,219.16,219.09,4.12128609]
[1757402035273,18.53,219.16,219.1,4.12128609]
[1757402035468,29.27,219.16,219.08,7.02]
[1757402035665,29.27,219.16,219.09,4.12277676]
[1757402035868,29.27,219.16,219.1,4.12277676]
[1757402036065,39.31,219.16,219.11,4.12372641]
[1757402036265,7.51,219.15,219.08,7.02]
[1757402036471,7.51,219.15,219.09,4.12372794]
[1757402036673,7.51,219.15,219.1,4.12372794]
[1757402036875,31.8,219.16,219.11,4.12372794]
[1757402037074,7.51,219.15,219.08,7.02]
[1757402037271,7.51,219.15,219.09,4.12561435]
[1757402037476,31.8,219.16,219.1,4.12561435]
[1757402037671,7.51,219.15,219.11,4.12561435]
[1757402037876,7.51,219.15,219.08,7.02]
[1757402038075,7.51,219.15,219.09,4.12590564]
[1757402038272,7.51,219.15,219.1,4.12590564]
[1757402038472,41.34,219.16,219.11,4.12590564]
[1757402038771,7.51,219.15,219.08,7.02]
[1757402038972,7.51,219.15,219.09,4.12791313]
[1757402039277,7.51,219.15,219.1,4.12791313]
[1757402039471,7.51,219.15,219.11,4.12791313]
[1757402039677,7.51,219.15,219.12,4.12791313]
[1757402039872,7.51,219.15,219.08,7.02]
[1757402040074,7.51,219.15,219.09,4.12920598]
[1757402040275,7.51,219.15,219.1,4.12920598]
[1757402040476,7.51,219.15,219.11,4.12920598]
[1757402040778,7.51,219.15,219.08,7.02]
[1757402040977,7.51,219.15,219.09,4.13150608]
[1757402041178,60.1,219.16,219.1,4.13150608]
[1757402041380,60.1,219.16,219.11,4.13150608]
[1757402041576,60.1,219.16,219.12,4.13150608]
[1757402041879,7.51,219.15,219.08,7.02]
[1757402042079,7.51,219.15,219.09,4.13447366]
[1757402042281,7.51,219.15,219.1,4.13447366]
[1757402042474,7.51,219.15,219.11,4.13447366]
[1757402042679,7.51,219.15,219.08,7.02]
[1757402042879,17.51,219.15,219.09,4.12441282]
[1757402043082,10.0,219.15,219.1,4.12441282]
[1757402043376,10.56,219.19,219.11,7.76838986]
[1757402043576,7.51,219.18,219.12,4.12441282]
[1757402043781,7.51,219.17,219.13,4.12441282]
[1757402043982,7.51,219.18,219.14,4.12441282]
[1757402044283,7.51,219.18,219.15,4.13127799]
[1757402044478,7.51,219.18,219.09,7.02]
[1757402044682,7.51,219.18,219.1,7.78150226]
[1757402044878,7.51,219.18,219.11,7.78150226]
[1757402045084,7.51,219.18,219.12,7.78150226]
[1757402045385,7.51,219.18,219.13,4.13273744]
[1757402045588,7.51,219.18,219.14,4.13273744]
[1757402045776,10.56,219.19,219.15,4.13610826]
[1757402046082,7.51,219.18,219.16,4.13821954]
[1757402046382,7.51,219.18,219.09,7.02]
[1757402046576,50.59,219.18,219.1,7.79131034]
[1757402046774,50.59,219.18,219.11,7.79131034]
[1757402046978,50.59,219.18,219.12,7.79131034]
[1757402047174,7.51,219.17,219.13,7.79131034]
[1757402047384,7.51,219.17,219.14,4.13821954]
[1757402047683,43.08,219.18,219.15,4.13821954]
[1757402047884,7.51,219.17,219.16,4.13821954]
[1757402057390,2.98109559,219.22,219.16,4.13821954]
[1757402057585,7.38,219.2,219.17,4.13821954]
[1757402057790,7.38,219.2,219.12,7.02]
[1757402058093,113.7,219.19,219.13,7.81072325]
[1757402058293,113.7,219.19,219.14,4.14843711]
[1757402058498,113.7,219.19,219.15,4.14843711]
[1757402058696,7.38,219.18,219.16,4.14843711]
[1757402058996,7.38,219.18,219.17,4.14843711]
[1757402059188,121.06,219.18,219.17,4.14843711]
[1757402061598,306.84,219.26,219.17,4.14843711]
[1757402061800,7.38,219.21,219.14,7.65]
[1757402061998,7.38,219.19,219.15,11.79908221]
[1757402062194,7.38,219.19,219.16,4.14908221]
[1757402062498,2.98109559,219.24,219.16,4.14908221]
[1757402062499,7.38,219.23,219.17,4.14908221]
[1757402062699,2.98109559,219.27,219.18,4.14908221]
[1757402062902,7.38,219.25,219.19,4.14908221]
[1757402063096,7.38,219.25,219.2,4.14908221]
[1757402063397,7.38,219.25,219.2,7.65]
[1757402063601,37.14,219.24,219.2,7.65]
[1757402063902,117.38,219.23,219.2,7.65]
[1757402064201,113.68,219.22,219.2,7.65]
[1757402065201,7.38,219.22,219.2,7.65]
[1757402065501,113.66,219.21,219.11,7.90187417]
[1757402065703,113.66,219.21,219.13,7.65]
[1757402066000,113.66,219.21,219.14,7.80610529]
[1757402066200,113.66,219.21,219.15,7.80610529]
[1757402066396,113.66,219.21,219.16,15.45610529]
[1757402066595,113.66,219.21,219.17,4.14632218]
[1757402066796,7.38,219.2,219.18,4.14632218]
[1757402067100,7.38,219.2,219.13,7.65]
[1757402067300,7.38,219.2,219.14,7.80670342]
[1757402067493,7.38,219.2,219.15,4.14653657]
[1757402067700,113.66,219.21,219.16,4.14653657]
[1757402067902,7.38,219.2,219.17,4.14653657]
[1757402068102,113.66,219.19,219.18,4.14653657]
[1757402068296,121.04,219.19,219.18,4.14653657]
[1757402070001,121.04,219.19,219.12,7.65]
[1757402070202,121.04,219.19,219.13,7.80655771]
[1757402070401,121.04,219.19,219.14,15.45655771]
[1757402070702,121.04,219.19,219.15,11.7965785]
[1757402070906,121.04,219.19,219.16,4.1465785]
[1757402071200,121.04,219.19,219.17,4.1465785]
[1757402071402,121.04,219.19,219.18,4.1465785]
[1757402071905,7.38,219.19,219.18,4.14716161]
[1757402072101,40.48,219.19,219.18,4.14716161]
[1757402074606,7.62740252,219.3,219.18,4.14716161]
[1757402074607,7.38,219.29,219.18,4.14716161]
[1757402074904,7.38,219.26,219.19,7.80817243]
[1757402075106,62.2,219.25,219.21,7.65]
[1757402075307,54.82,219.24,219.22,4.14716161]
[1757402075506,54.82,219.24,219.23,4.14716161]
[1757402076106,7.38,219.25,219.23,4.16222149]
[1757402076307,40.88,219.25,219.21,7.65]
[1757402076503,40.88,219.25,219.22,4.16299373]
[1757402076804,40.88,219.25,219.23,4.16299373]
[1757402077005,89.12,219.25,219.21,7.65]
[1757402077207,117.52,219.25,219.22,4.16217422]
[1757402077508,7.38,219.25,219.23,4.16217422]
[1757402077801,7.38,219.24,219.21,7.65]
[1757402078003,7.38,219.24,219.22,4.16186931]
[1757402078205,7.38,219.24,219.23,4.16186931]
[1757402079505,7.38,219.29,219.23,4.16186931]
[1757402079705,7.38,219.27,219.24,4.16186931]
[1757402079899,7.38,219.27,219.15,4.1063]
[1757402080102,7.38,219.27,219.16,15.46620331]
[1757402080314,7.38,219.27,219.17,7.81620331]
[1757402080507,7.38,219.27,219.18,7.81620331]
[1757402080707,10.36109559,219.27,219.19,4.15939685]
[1757402080904,10.36109559,219.27,219.2,4.15939685]
[1757402081107,7.38,219.26,219.21,4.15939685]
[1757402081311,7.38,219.26,219.16,7.65]
[1757402081512,9.84,219.25,219.17,7.81312868]
[1757402081713,41.24,219.25,219.18,7.81312868]
[1757402081902,41.24,219.25,219.16,7.65]
[1757402081903,71.06,219.25,219.19,4.15761739]
[1757402082106,71.06,219.25,219.2,4.15761739]
[1757402082312,71.06,219.25,219.21,4.15761739]
[1757402082515,7.38,219.25,219.16,7.65]
[1757402082713,36.42,219.25,219.17,7.81244295]
[1757402083010,36.42,219.25,219.18,7.81244295]
[1757402083313,36.42,219.25,219.19,4.15725854]
[1757402083509,6.99,219.24,219.2,4.15725854]
[1757402083709,6.99,219.24,219.21,4.15725854]
[1757402083908,6.99,219.24,219.22,4.15725854]
[1757402084107,6.99,219.24,219.2,7.35]
[1757402084409,6.99,219.24,219.21,4.15466905]
[1757402084605,6.99,219.24,219.22,4.15602758]
[1757402084909,6.99,219.24,219.2,7.35]
[1757402085108,6.99,219.24,219.21,4.15635599]
[1757402085313,6.99,219.24,219.16,7.35]
[1757402085503,6.99,219.24,219.17,7.81183707]
[1757402085704,6.99,219.24,219.18,4.15689155]
[1757402085911,6.99,219.24,219.19,4.15689155]
[1757402086114,59.08,219.25,219.16,7.35]
[1757402086115,59.08,219.25,219.2,4.15689155]
[1757402086412,9.97109559,219.24,219.16,7.35]
[1757402086615,9.97109559,219.24,219.17,7.81179732]
[1757402086812,9.97109559,219.24,219.18,4.1568031]
[1757402087012,2.98109559,219.24,219.19,4.1568031]
[1757402087207,2.98109559,219.24,219.2,4.1568031]
[1757402087412,2.98109559,219.24,219.16,7.35]
[1757402087413,9.97109559,219.24,219.16,7.35]
[1757402087613,9.97109559,219.24,219.17,7.81245115]
[1757402087815,9.97109559,219.24,219.18,4.15715574]
[1757402088015,2.98109559,219.24,219.19,4.15715574]
[1757402088217,2.98109559,219.24,219.2,4.15715574]
[1757402088515,9.97109559,219.24,219.16,7.35]
[1757402088716,9.97109559,219.24,219.17,7.81064605]
[1757402088911,9.97109559,219.24,219.18,4.15619958]
[1757402089215,2.98109559,219.24,219.19,4.15619958]
[1757402089418,2.98109559,219.24,219.2,4.15619958]
[1757402089611,2.98109559,219.24,219.21,4.15619958]
[1757402089814,9.97109559,219.24,219.16,7.35]
[1757402090010,6.99,219.24,219.18,7.35]
[1757402090314,306.78,219.34,219.2,7.35]
[1757402090315,89.40533626,219.26,219.2,7.35]
[1757402090514,306.78,219.34,219.22,7.35]
[1757402090715,1.90533626,219.28,219.23,4.15621176]
[1757402091020,8.89533626,219.28,219.24,4.15621176]
[1757402091214,8.89533626,219.28,219.23,7.35]
[1757402091412,8.89533626,219.28,219.24,4.15396467]
[1757402091613,8.89533626,219.28,219.23,7.35]
[1757402091812,8.89533626,219.28,219.24,4.15396158]
[1757402092017,8.89533626,219.28,219.19,7.35]
[1757402092314,8.89533626,219.28,219.21,7.35]
[1757402092514,6.99,219.28,219.22,4.15373201]
[1757402092720,8.89533626,219.27,219.23,4.15373201]
[1757402092917,8.89533626,219.27,219.24,4.15373201]
[1757402093117,6.99,219.27,219.21,7.35]
[1757402093317,8.89533626,219.26,219.22,11.50318602]
[1757402093523,8.89533626,219.26,219.23,4.15318602]
[1757402093723,8.89533626,219.26,219.24,4.15318602]
[1757402093929,8.89533626,219.26,219.25,4.15318602]
[1757402094928,8.89533626,219.26,219.22,7.35]
[1757402095123,8.89533626,219.26,219.23,4.15250367]
[1757402095319,8.89533626,219.26,219.24,4.15250367]
[1757402095522,8.89533626,219.26,219.25,4.15250367]
[1757402097329,8.89533626,219.26,219.22,7.35]
[1757402097529,313.77,219.34,219.24,7.35]
[1757402097821,13.7,219.44,219.24,7.35]
[1757402097822,6.99,219.32,219.25,4.15090622]
[1757402098023,6.99,219.29,219.26,4.15090622]
[1757402098227,6.99,219.29,219.24,7.35]
[1757402098228,6.99,219.29,219.27,4.15090622]
[1757402098428,6.99,219.29,219.21,7.35]
[1757402098624,6.99,219.29,219.23,7.35]
[1757402098832,1.90533626,219.31,219.25,7.35]
[1757402099028,120.51,219.32,219.26,4.14931799]
[1757402099225,6.99,219.32,219.28,7.35]
[1757402099829,115.42533626,219.33,219.28,7.35]
[1757402100027,6.99,219.32,219.28,7.35]
[1757402100227,6.99,219.32,219.25,7.35]
[1757402100427,8.89533626,219.31,219.26,4.14868602]
[1757402100632,8.89533626,219.31,219.27,11.49868602]
[1757402100828,8.89533626,219.31,219.27,7.35]
[1757402101027,6.99,219.31,219.23,7.35]
[1757402101228,1.90533626,219.33,219.25,7.35]
[1757402101429,115.40533626,219.33,219.26,4.14904829]
[1757402101724,122.39533626,219.33,219.27,4.14904829]
[1757402101929,120.49,219.33,219.25,7.35]
[1757402102128,1.90533626,219.32,219.26,4.14821007]
[1757402102325,8.89533626,219.32,219.28,7.35]
[1757402102728,6.99,219.32,219.28,7.35]
[1757402103331,115.40533626,219.33,219.28,7.35]
[1757402103529,1.90533626,219.35,219.27,7.35]
[1757402103727,113.5,219.36,219.29,7.35]
[1757402104136,113.5,219.36,219.3,4.1484073]
[1757402104331,113.5,219.36,219.29,7.35]
[1757402104526,8.89533626,219.37,219.3,4.14748433]
[1757402104832,120.47,219.36,219.32,7.35]
[1757402105131,120.47,219.36,219.29,7.35]
[1757402105337,1.90533626,219.35,219.26,7.35]
[1757402105532,6.99,219.34,219.27,4.14695823]
[1757402105735,6.99,219.34,219.28,4.14695823]
[1757402106036,8.89533626,219.35,219.29,4.14695823]
[1757402106236,6.99,219.34,219.3,4.14695823]
[1757402106431,6.99,219.34,219.27,7.35]
[1757402106629,6.99,219.34,219.28,4.14584852]
[1757402106828,8.89533626,219.35,219.29,11.49584852]
[1757402107025,6.99,219.47,219.31,7.35]
[1757402107236,6.99,219.47,219.37,7.35]
[1757402107536,6.99,219.47,219.38,4.14411844]
[1757402107537,1.90533626,219.46,219.38,4.14411844]
[1757402107730,1.90533626,219.46,219.39,4.14411844]
[1757402107926,1.90533626,219.46,219.4,4.14411844]
[1757402108132,1.90533626,219.46,219.37,7.35]
[1757402108434,6.99,219.45,219.38,4.14678066]
[1757402108631,1.90533626,219.43,219.37,7.35]
[1757402108831,6.99,219.42,219.38,4.14352131]
[1757402109029,1.90533626,219.4,219.32,7.35]
[1757402109337,1.90533626,219.4,219.33,4.14526354]
[1757402109534,1.90533626,219.4,219.34,4.14526354]
[1757402109734,1.90533626,219.4,219.32,7.35]
[1757402110035,1.90533626,219.4,219.33,4.14452708]
[1757402110231,1.90533626,219.4,219.34,4.14452708]
[1757402110435,1.90533626,219.4,219.32,7.35]
[1757402110638,1.90533626,219.4,219.33,4.14319008]
[1757402110836,1.90533626,219.4,219.34,4.14319008]
[1757402111030,1.90533626,219.4,219.32,7.35]
[1757402111230,1.90533626,219.4,219.33,4.14295382]
[1757402111431,8.89533626,219.42,219.34,4.14295382]
[1757402111626,8.89533626,219.42,219.32,9.25533626]
[1757402111833,6.99,219.42,219.33,4.14137299]
[1757402112137,8.89533626,219.42,219.34,4.14137299]
[1757402112329,8.89533626,219.42,219.32,9.25533626]
[1757402112535,8.89533626,219.42,219.33,4.14047412]
[1757402112834,8.89533626,219.42,219.34,4.14047412]
[1757402113136,8.89533626,219.42,219.32,9.25533626]
[1757402113337,8.89533626,219.42,219.33,4.14015957]
[1757402113538,8.89533626,219.42,219.32,9.25533626]
[1757402113733,8.89533626,219.42,219.33,4.13918037]
[1757402113931,8.89533626,219.42,219.32,9.25533626]
[1757402114133,8.89533626,219.42,219.33,4.13919862]
[1757402114333,8.89533626,219.42,219.32,9.25533626]
[1757402114642,8.89533626,219.42,219.33,4.13876871]
[1757402114939,8.89533626,219.42,219.32,9.25533626]
[1757402115144,8.89533626,219.42,219.33,4.13909199]
[1757402115443,8.89533626,219.42,219.32,9.25533626]
[1757402115739,8.89533626,219.42,219.33,4.13873558]
[1757402115933,8.89533626,219.42,219.32,9.25533626]
[1757402116134,8.89533626,219.42,219.33,4.13854318]
[1757402116327,8.89533626,219.42,219.32,7.35]
[1757402116530,8.89533626,219.42,219.33,4.13856349]
[1757402116837,8.89533626,219.42,219.32,9.25533626]
[1757402117033,8.89533626,219.42,219.33,4.13861963]
[1757402117233,8.89533626,219.42,219.32,9.25533626]
[1757402117434,8.89533626,219.42,219.34,7.37]
[1757402117838,6.99,219.42,219.34,9.27533626]
[1757402118344,8.89533626,219.42,219.34,9.27533626]
[1757402120735,6.99,219.42,219.34,9.27533626]
[1757402120937,9.35533626,219.45,219.35,4.13489244]
[1757402121236,9.35533626,219.45,219.36,13.4102287]
[1757402121440,9.35533626,219.45,219.36,9.27533626]
[1757402121642,9.35533626,219.45,219.37,4.13402163]
[1757402121830,9.35533626,219.45,219.36,9.27533626]
[1757402122035,9.35533626,219.45,219.37,4.13412083]
[1757402122235,9.35533626,219.45,219.36,9.27533626]
[1757402122443,9.35533626,219.45,219.37,4.13351321]
[1757402122640,9.35533626,219.45,219.38,4.13351321]
[1757402122941,9.35533626,219.45,219.36,9.27533626]
[1757402123142,9.35533626,219.45,219.37,4.13377069]
[1757402123439,9.35533626,219.45,219.36,9.27533626]
[1757402123642,9.35533626,219.45,219.37,4.13382442]
[1757402123937,9.35533626,219.45,219.36,9.27533626]
[1757402124134,9.35533626,219.45,219.37,4.13382442]
[1757402124335,9.35533626,219.45,219.36,9.27533626]
[1757402124531,9.35533626,219.45,219.37,4.13335898]
[1757402124733,9.35533626,219.45,219.36,9.27533626]
[1757402124933,9.35533626,219.45,219.37,4.13350751]
[1757402125130,9.35533626,219.45,219.36,9.27533626]
[1757402125844,1.90533626,219.44,219.37,4.13345771]
[1757402126039,1.90533626,219.44,219.36,9.27533626]
[1757402126245,1.90533626,219.44,219.37,4.13332264]
[1757402126436,1.90533626,219.44,219.36,9.27533626]
[1757402126641,1.90533626,219.44,219.37,4.1333688]
[1757402126844,1.90533626,219.44,219.36,9.27533626]
[1757402127136,1.90533626,219.44,219.37,4.13321911]
[1757402127341,1.90533626,219.44,219.36,9.27533626]
[1757402127543,1.90533626,219.44,219.37,4.13214353]
[1757402127733,1.90533626,219.44,219.36,9.27533626]
[1757402127933,1.90533626,219.44,219.37,4.13201189]
[1757402128137,1.90533626,219.44,219.36,9.27533626]
[1757402128338,1.90533626,219.44,219.37,4.13256102]
[1757402128540,9.35533626,219.45,219.36,9.27533626]
[1757402128742,9.35533626,219.45,219.37,4.13242284]
[1757402128946,9.35533626,219.45,219.36,9.27533626]
[1757402129243,9.35533626,219.45,219.37,4.13242284]
[1757402129444,9.35533626,219.45,219.36,9.27533626]
[1757402129644,9.35533626,219.45,219.37,4.13291654]
[1757402129844,9.35533626,219.45,219.36,9.27533626]
[1757402130044,9.35533626,219.45,219.37,4.13305285]